[Event "Titled Tuesday Blitz August 16 Early 2022"]
[White "Bortnyk, Olexandr"]
[Black "Perez Ponsa, Federico"]
[WhiteFideId "14120828"]
[BlackFideId "117927"]
[WhiteElo "2723"]
[BlackElo "2604"]
[Result "1-0"]
[Round "06"]
[TimeControl "180+1"]
[Date "2022.08.16"]
[WhiteClock "0:00:10"]
[BlackClock "0:00:45"]

1. d4 {[%clk 0:03:00]}  Nf6 {[%clk 0:02:14]} 2. Nc3 {[%clk 0:03:01]}  d5 {[%clk 0:02:13]} 3. Bf4 {[%clk 0:03:01]}  c5 {[%clk 0:02:13]} 4. e4 {[%clk 0:03:02]}  Nxe4 {[%clk 0:02:13]} 5. Nxe4 {[%clk 0:03:01]}  dxe4 {[%clk 0:02:13]} 6. d5 {[%clk 0:03:02]}  g6 {[%clk 0:02:12]} 7. Be5 {[%clk 0:03:02]}  Rg8 {[%clk 0:02:09]} 8. Qd2 {[%clk 0:02:54]}  Nd7 {[%clk 0:02:09]} 9. Bc3 {[%clk 0:02:53]}  Bg7 {[%clk 0:02:09]} 10. Bxg7 {[%clk 0:02:51]}  Rxg7 {[%clk 0:02:10]} 11. O-O-O {[%clk 0:02:47]}  Nf6 {[%clk 0:02:09]} 12. f3 {[%clk 0:02:40]}  Kf8 {[%clk 0:02:08]} 13. fxe4 {[%clk 0:02:31]}  Nxe4 {[%clk 0:02:09]} 14. Qe3 {[%clk 0:02:31]}  Nd6 {[%clk 0:02:06]} 15. Nf3 {[%clk 0:02:27]}  Bf5 {[%clk 0:02:03]} 16. Be2 {[%clk 0:02:18]}  Qa5 {[%clk 0:02:01]} 17. Kb1 {[%clk 0:02:15]}  Re8 {[%clk 0:02:00]} 18. Rhf1 {[%clk 0:02:11]}  Qa4 {[%clk 0:01:59]} 19. Bd3 {[%clk 0:02:01]}  Bxd3 {[%clk 0:01:56]} 20. Rxd3 {[%clk 0:02:02]}  b6 {[%clk 0:01:50]} 21. Ne5 {[%clk 0:01:16]}  Kg8 {[%clk 0:01:46]} 22. Rf4 {[%clk 0:01:12]}  Qa6 {[%clk 0:01:38]} 23. a3 {[%clk 0:01:05]}  Qc8 {[%clk 0:01:36]} 24. g4 {[%clk 0:01:00]}  Qc7 {[%clk 0:01:33]} 25. Qg3 {[%clk 0:00:52]}  c4 {[%clk 0:01:25]} 26. Rdf3 {[%clk 0:00:48]}  b5 {[%clk 0:01:26]} 27. Nc6 {[%clk 0:00:30]}  Qd7 {[%clk 0:01:21]} 28. h4 {[%clk 0:00:29]}  a6 {[%clk 0:01:20]} 29. Ne5 {[%clk 0:00:28]}  Qa7 {[%clk 0:01:18]} 30. Rf1 {[%clk 0:00:26]}  Qc5 {[%clk 0:01:16]} 31. Qf3 {[%clk 0:00:25]}  f5 {[%clk 0:00:55]} 32. h5 {[%clk 0:00:21]}  Ne4 {[%clk 0:00:52]} 33. Rxe4 {[%clk 0:00:17]}  fxe4 {[%clk 0:00:52]} 34. Qxe4 {[%clk 0:00:16]}  Qd6 {[%clk 0:00:48]} 35. h6 {[%clk 0:00:16]}  c3 {[%clk 0:00:46]} 36. hxg7 {[%clk 0:00:16]}  Kxg7 {[%clk 0:00:47]} 37. Qd4 {[%clk 0:00:12]}  Kg8 {[%clk 0:00:46]} 38. Nf7 {[%clk 0:00:11]}  e5 {[%clk 0:00:45]} 39. Nxd6 {[%clk 0:00:10]} 1-0


[Site "https://www.chess.com"]

[Event "Titled Tuesday Blitz August 16 Early 2022"]
[White "Brozyna, Mateusz"]
[Black "Sanchez, Robert"]
[WhiteFideId "21816140"]
[BlackFideId "2034360"]
[WhiteElo "2276"]
[BlackElo "1966"]
[Result "1-0"]
[Round "06"]
[TimeControl "180+2"]
[Date "2022.08.18"]
[WhiteClock "0:00:00"]
[BlackClock "0:00:00"]

1. e4 {[%clk 0:00:00]}  e6 {[%clk 0:00:00]} 2. d4 {[%clk 0:00:00]}  d5 {[%clk 0:00:00]} 3. exd5 {[%clk 0:00:00]}  exd5 {[%clk 0:00:00]} 4. Nf3 {[%clk 0:00:00]}  Nf6 {[%clk 0:00:00]} 5. Bd3 {[%clk 0:00:00]}  Be7 {[%clk 0:00:00]} 6. O-O {[%clk 0:00:00]}  O-O {[%clk 0:00:00]} 7. h3 {[%clk 0:00:00]}  c5 {[%clk 0:00:00]} 8. c3 {[%clk 0:00:00]}  Nc6 {[%clk 0:00:00]} 9. dxc5 {[%clk 0:00:00]}  Bxc5 {[%clk 0:00:00]} 10. Nbd2 {[%clk 0:00:00]}  Be6 {[%clk 0:00:00]} 11. Nb3 {[%clk 0:00:00]}  Bb6 {[%clk 0:00:00]} 12. Bg5 {[%clk 0:00:00]}  h6 {[%clk 0:00:00]} 13. Bh4 {[%clk 0:00:00]}  Re8 {[%clk 0:00:00]} 14. Re1 {[%clk 0:00:00]}  g5 {[%clk 0:00:00]} 15. Nxg5 {[%clk 0:00:00]}  hxg5 {[%clk 0:00:00]} 16. Bxg5 {[%clk 0:00:00]}  Bxf2+ {[%clk 0:00:00]} 17. Kxf2 {[%clk 0:00:00]}  Ne4+ {[%clk 0:00:00]} 18. Bxe4 {[%clk 0:00:00]}  Qxg5 {[%clk 0:00:00]} 19. Bf3 {[%clk 0:00:00]}  Ne5 {[%clk 0:00:00]} 20. Qd4 {[%clk 0:00:00]}  Nxf3 {[%clk 0:00:00]} 21. gxf3 {[%clk 0:00:00]}  Kf8 {[%clk 0:00:00]} 22. Rg1 {[%clk 0:00:00]}  Qh5 {[%clk 0:00:00]} 23. Rg3 {[%clk 0:00:00]}  Rac8 {[%clk 0:00:00]} 24. Qb4+ {[%clk 0:00:00]}  Re7 {[%clk 0:00:00]} 25. Rag1 {[%clk 0:00:00]}  Ke8 {[%clk 0:00:00]} 26. Rg8+ {[%clk 0:00:00]}  Kd7 {[%clk 0:00:00]} 27. Qxb7+ {[%clk 0:00:00]}  Rc7 {[%clk 0:00:00]} 28. Nc5+ {[%clk 0:00:00]}  Kd6 {[%clk 0:00:00]} 29. Rd8+ {[%clk 0:00:00]}  Kxc5 {[%clk 0:00:00]} 30. Qb4+ {[%clk 0:00:00]}  Kc6 {[%clk 0:00:00]} 31. Rd6# {[%clk 0:00:00]} 1-0


[Site "https://www.chess.com"]

[Event "Titled Tuesday Blitz August 16 Early 2022"]
[White "Cannon, David"]
[Black "Ginzburg, Yakov"]
[WhiteFideId "3213110"]
[BlackFideId "4157176"]
[WhiteElo "2137"]
[BlackElo "2405"]
[Result "1-0"]
[Round "06"]
[TimeControl "180+2"]
[Date "2022.08.18"]
[WhiteClock "0:00:00"]
[BlackClock "0:00:00"]

1. d4 {[%clk 0:00:00]}  Nf6 {[%clk 0:00:00]} 2. c4 {[%clk 0:00:00]}  e5 {[%clk 0:00:00]} 3. dxe5 {[%clk 0:00:00]}  Ng4 {[%clk 0:00:00]} 4. Bf4 {[%clk 0:00:00]}  Nc6 {[%clk 0:00:00]} 5. Nf3 {[%clk 0:00:00]}  Bc5 {[%clk 0:00:00]} 6. e3 {[%clk 0:00:00]}  Qe7 {[%clk 0:00:00]} 7. Nc3 {[%clk 0:00:00]}  O-O {[%clk 0:00:00]} 8. Nd5 {[%clk 0:00:00]}  Bb4+ {[%clk 0:00:00]} 9. Ke2 {[%clk 0:00:00]}  Qc5 {[%clk 0:00:00]} 10. Rc1 {[%clk 0:00:00]}  b5 {[%clk 0:00:00]} 11. h3 {[%clk 0:00:00]}  Nh6 {[%clk 0:00:00]} 12. Bxh6 {[%clk 0:00:00]}  gxh6 {[%clk 0:00:00]} 13. Nf6+ {[%clk 0:00:00]}  Kh8 {[%clk 0:00:00]} 14. Qd3 {[%clk 0:00:00]} 1-0


[Site "https://www.chess.com"]

[Event "Titled Tuesday Blitz August 16 Early 2022"]
[White "Cruz, Cristhian"]
[Black "Bashirli, Saadat"]
[WhiteFideId "3801969"]
[BlackFideId "13429990"]
[WhiteElo "2568"]
[BlackElo "1567"]
[Result "1-0"]
[Round "06"]
[TimeControl "180+2"]
[Date "2022.08.18"]
[WhiteClock "0:00:00"]
[BlackClock "0:00:00"]

1. d4 {[%clk 0:00:00]}  d5 {[%clk 0:00:00]} 2. c4 {[%clk 0:00:00]}  e6 {[%clk 0:00:00]} 3. Nc3 {[%clk 0:00:00]}  c6 {[%clk 0:00:00]} 4. e3 {[%clk 0:00:00]}  dxc4 {[%clk 0:00:00]} 5. Bxc4 {[%clk 0:00:00]}  b5 {[%clk 0:00:00]} 6. Bd3 {[%clk 0:00:00]}  Bb7 {[%clk 0:00:00]} 7. Nf3 {[%clk 0:00:00]}  Nf6 {[%clk 0:00:00]} 8. Qc2 {[%clk 0:00:00]}  Bb4 {[%clk 0:00:00]} 9. O-O {[%clk 0:00:00]}  O-O {[%clk 0:00:00]} 10. e4 {[%clk 0:00:00]}  h6 {[%clk 0:00:00]} 11. e5 {[%clk 0:00:00]}  Nd5 {[%clk 0:00:00]} 12. Ne4 {[%clk 0:00:00]}  Nd7 {[%clk 0:00:00]} 13. a3 {[%clk 0:00:00]}  Be7 {[%clk 0:00:00]} 14. Bd2 {[%clk 0:00:00]}  N7b6 {[%clk 0:00:00]} 15. Rfd1 {[%clk 0:00:00]}  a5 {[%clk 0:00:00]} 16. Nc5 {[%clk 0:00:00]}  Bxc5 {[%clk 0:00:00]} 17. dxc5 {[%clk 0:00:00]}  Nd7 {[%clk 0:00:00]} 18. b4 {[%clk 0:00:00]}  axb4 {[%clk 0:00:00]} 19. axb4 {[%clk 0:00:00]}  Qe7 {[%clk 0:00:00]} 20. Qb2 {[%clk 0:00:00]}  f6 {[%clk 0:00:00]} 21. exf6 {[%clk 0:00:00]}  N7xf6 {[%clk 0:00:00]} 22. Ne5 {[%clk 0:00:00]}  Rxa1 {[%clk 0:00:00]} 23. Rxa1 {[%clk 0:00:00]}  Ra8 {[%clk 0:00:00]} 24. Re1 {[%clk 0:00:00]}  Ra4 {[%clk 0:00:00]} 25. Bg6 {[%clk 0:00:00]}  Kh8 {[%clk 0:00:00]} 26. Bc2 {[%clk 0:00:00]}  Kg8 {[%clk 0:00:00]} 27. Bxa4 {[%clk 0:00:00]}  bxa4 {[%clk 0:00:00]} 28. Qa3 {[%clk 0:00:00]}  Ba6 {[%clk 0:00:00]} 29. Qxa4 {[%clk 0:00:00]}  Bb5 {[%clk 0:00:00]} 30. Qa8+ {[%clk 0:00:00]}  Kh7 {[%clk 0:00:00]} 31. Nxc6 {[%clk 0:00:00]}  Qd7 {[%clk 0:00:00]} 32. Ne5 {[%clk 0:00:00]}  Qc7 {[%clk 0:00:00]} 33. Qa1 {[%clk 0:00:00]}  Bd3 {[%clk 0:00:00]} 34. Qd4 {[%clk 0:00:00]}  Be4 {[%clk 0:00:00]} 35. Rxe4 {[%clk 0:00:00]}  Nxe4 {[%clk 0:00:00]} 36. Qxe4+ {[%clk 0:00:00]}  Kg8 {[%clk 0:00:00]} 37. Qf3 {[%clk 0:00:00]}  Nf6 {[%clk 0:00:00]} 38. Bc3 {[%clk 0:00:00]}  Qd8 {[%clk 0:00:00]} 39. h3 {[%clk 0:00:00]}  Nd5 {[%clk 0:00:00]} 40. Qf7+ {[%clk 0:00:00]}  Kh7 {[%clk 0:00:00]} 41. Nc6 {[%clk 0:00:00]}  Qg5 {[%clk 0:00:00]} 42. Qxg7+ {[%clk 0:00:00]}  Qxg7 {[%clk 0:00:00]} 43. Bxg7 {[%clk 0:00:00]}  Kxg7 {[%clk 0:00:00]} 44. b5 {[%clk 0:00:00]}  Nc7 {[%clk 0:00:00]} 45. b6 {[%clk 0:00:00]}  Na6 {[%clk 0:00:00]} 46. b7 {[%clk 0:00:00]}  Kf6 {[%clk 0:00:00]} 47. b8=Q {[%clk 0:00:00]}  Nxb8 {[%clk 0:00:00]} 48. Nxb8 {[%clk 0:00:00]}  Ke5 {[%clk 0:00:00]} 49. Nd7+ {[%clk 0:00:00]}  Kd5 {[%clk 0:00:00]} 50. f4 {[%clk 0:00:00]}  Kc6 {[%clk 0:00:00]} 51. Nf8 {[%clk 0:00:00]}  Kxc5 {[%clk 0:00:00]} 52. Nxe6+ {[%clk 0:00:00]}  Kd5 {[%clk 0:00:00]} 53. Ng7 {[%clk 0:00:00]}  Ke4 {[%clk 0:00:00]} 54. g3 {[%clk 0:00:00]}  Kf3 {[%clk 0:00:00]} 55. Kh2 {[%clk 0:00:00]}  Kf2 {[%clk 0:00:00]} 56. f5 {[%clk 0:00:00]}  Kf3 {[%clk 0:00:00]} 57. f6 {[%clk 0:00:00]}  Kf2 {[%clk 0:00:00]} 58. f7 {[%clk 0:00:00]}  Ke1 {[%clk 0:00:00]} 59. f8=Q {[%clk 0:00:00]}  Ke2 {[%clk 0:00:00]} 60. Qf4 {[%clk 0:00:00]}  Kd1 {[%clk 0:00:00]} 61. Qf2 {[%clk 0:00:00]}  Kc1 {[%clk 0:00:00]} 62. Kg2 {[%clk 0:00:00]}  Kb1 {[%clk 0:00:00]} 63. Kf3 {[%clk 0:00:00]}  Kc1 {[%clk 0:00:00]} 64. Ke3 {[%clk 0:00:00]}  Kb1 {[%clk 0:00:00]} 65. Kd3 {[%clk 0:00:00]}  Ka1 {[%clk 0:00:00]} 66. Kc3 {[%clk 0:00:00]}  Kb1 {[%clk 0:00:00]} 67. Qb2# {[%clk 0:00:00]} 1-0


[Site "https://www.chess.com"]

[Event "Titled Tuesday Blitz August 16 Early 2022"]
[White "D`Arruda, Ricardo D."]
[Black "Koniahli, Malek."]
[WhiteFideId "100692"]
[BlackFideId "7603495"]
[WhiteElo "2271"]
[BlackElo "2097"]
[Result "1/2-1/2"]
[Round "06"]
[TimeControl "180+2"]
[Date "2022.08.18"]
[WhiteClock "0:00:00"]
[BlackClock "0:00:00"]

1. d4 {[%clk 0:00:00]}  Nf6 {[%clk 0:00:00]} 2. Nf3 {[%clk 0:00:00]}  g6 {[%clk 0:00:00]} 3. Nc3 {[%clk 0:00:00]}  Bg7 {[%clk 0:00:00]} 4. e4 {[%clk 0:00:00]}  d6 {[%clk 0:00:00]} 5. Bg5 {[%clk 0:00:00]}  O-O {[%clk 0:00:00]} 6. Qd2 {[%clk 0:00:00]}  c5 {[%clk 0:00:00]} 7. dxc5 {[%clk 0:00:00]}  dxc5 {[%clk 0:00:00]} 8. Qxd8 {[%clk 0:00:00]}  Rxd8 {[%clk 0:00:00]} 9. e5 {[%clk 0:00:00]}  Ng4 {[%clk 0:00:00]} 10. Bxe7 {[%clk 0:00:00]}  Re8 {[%clk 0:00:00]} 11. Bxc5 {[%clk 0:00:00]}  Nxe5 {[%clk 0:00:00]} 12. Nxe5 {[%clk 0:00:00]}  Rxe5+ {[%clk 0:00:00]} 13. Be3 {[%clk 0:00:00]}  Bf5 {[%clk 0:00:00]} 14. O-O-O {[%clk 0:00:00]}  Nc6 {[%clk 0:00:00]} 15. Bd3 {[%clk 0:00:00]}  Be6 {[%clk 0:00:00]} 16. Rhe1 {[%clk 0:00:00]}  Rc8 {[%clk 0:00:00]} 17. Be4 {[%clk 0:00:00]}  f5 {[%clk 0:00:00]} 18. Bxc6 {[%clk 0:00:00]}  Rxc6 {[%clk 0:00:00]} 19. Kb1 {[%clk 0:00:00]}  a6 {[%clk 0:00:00]} 20. a3 {[%clk 0:00:00]}  h5 {[%clk 0:00:00]} 21. Bd2 {[%clk 0:00:00]}  Kf7 {[%clk 0:00:00]} 22. Rxe5 {[%clk 0:00:00]}  Bxe5 {[%clk 0:00:00]} 23. h3 {[%clk 0:00:00]}  h4 {[%clk 0:00:00]} 24. Ne2 {[%clk 0:00:00]}  Kf6 {[%clk 0:00:00]} 25. Bc3 {[%clk 0:00:00]}  g5 {[%clk 0:00:00]} 26. Bxe5+ {[%clk 0:00:00]}  Kxe5 {[%clk 0:00:00]} 27. Nd4 {[%clk 0:00:00]}  Rc4 {[%clk 0:00:00]} 28. Nxe6 {[%clk 0:00:00]}  Kxe6 {[%clk 0:00:00]} 29. Kc1 {[%clk 0:00:00]}  Rf4 {[%clk 0:00:00]} 30. Rd2 {[%clk 0:00:00]}  g4 {[%clk 0:00:00]} 31. hxg4 {[%clk 0:00:00]}  fxg4 {[%clk 0:00:00]} 32. g3 {[%clk 0:00:00]}  hxg3 {[%clk 0:00:00]} 33. fxg3 {[%clk 0:00:00]}  Rf1+ {[%clk 0:00:00]} 34. Rd1 {[%clk 0:00:00]}  Rf3 {[%clk 0:00:00]} 35. Rg1 {[%clk 0:00:00]}  Rf2 {[%clk 0:00:00]} 36. Kd1 {[%clk 0:00:00]}  Ke5 {[%clk 0:00:00]} 37. Re1+ {[%clk 0:00:00]}  Kd4 {[%clk 0:00:00]} 38. Re2 {[%clk 0:00:00]}  Rf3 {[%clk 0:00:00]} 39. Rg2 {[%clk 0:00:00]}  Ke3 {[%clk 0:00:00]} 40. Re2+ {[%clk 0:00:00]}  Kd4 {[%clk 0:00:00]} 41. Rg2 {[%clk 0:00:00]}  Rf1+ {[%clk 0:00:00]} 42. Ke2 {[%clk 0:00:00]}  Rb1 {[%clk 0:00:00]} 43. b3 {[%clk 0:00:00]}  b5 {[%clk 0:00:00]} 44. Rf2 {[%clk 0:00:00]}  Kc3 {[%clk 0:00:00]} 45. Ke3 {[%clk 0:00:00]}  Rc1 {[%clk 0:00:00]} 46. Kf4 {[%clk 0:00:00]}  Rxc2 {[%clk 0:00:00]} 47. Rxc2+ {[%clk 0:00:00]}  Kxc2 {[%clk 0:00:00]} 48. b4 {[%clk 0:00:00]}  Kb3 {[%clk 0:00:00]} 49. Kxg4 {[%clk 0:00:00]}  Kxa3 {[%clk 0:00:00]} 50. Kf4 {[%clk 0:00:00]}  Kxb4 {[%clk 0:00:00]} 51. g4 {[%clk 0:00:00]}  a5 {[%clk 0:00:00]} 52. g5 {[%clk 0:00:00]}  a4 {[%clk 0:00:00]} 53. g6 {[%clk 0:00:00]}  a3 {[%clk 0:00:00]} 54. g7 {[%clk 0:00:00]}  a2 {[%clk 0:00:00]} 55. g8=Q {[%clk 0:00:00]}  a1=Q {[%clk 0:00:00]} 56. Qf8+ {[%clk 0:00:00]}  Kc4 {[%clk 0:00:00]} 57. Qf7+ {[%clk 0:00:00]}  Kd3 {[%clk 0:00:00]} 58. Qb3+ {[%clk 0:00:00]}  Kd2 {[%clk 0:00:00]} 59. Qxb5 {[%clk 0:00:00]}  Qf6+ {[%clk 0:00:00]} 60. Ke4 {[%clk 0:00:00]}  Qe6+ {[%clk 0:00:00]} 61. Kd4 {[%clk 0:00:00]}  Qd6+ {[%clk 0:00:00]} 62. Qd5 {[%clk 0:00:00]}  Qb4+ {[%clk 0:00:00]} 63. Ke5+ {[%clk 0:00:00]}  Ke3 {[%clk 0:00:00]} 64. Ke6 {[%clk 0:00:00]}  Qb6+ {[%clk 0:00:00]} 65. Qd6 {[%clk 0:00:00]}  Qb3+ {[%clk 0:00:00]} 66. Qd5 {[%clk 0:00:00]}  Qb1 {[%clk 0:00:00]} 67. Qe5+ {[%clk 0:00:00]}  Kf2 {[%clk 0:00:00]} 68. Qf5+ {[%clk 0:00:00]}  Qxf5+ {[%clk 0:00:00]} 69. Kxf5 {[%clk 0:00:00]} 1/2-1/2


[Site "https://www.chess.com"]

[Event "Titled Tuesday Blitz August 16 Early 2022"]
[White "De La Colina, Nicolas"]
[Black "Koridze, Lile"]
[WhiteFideId "30946921"]
[BlackFideId "13612514"]
[WhiteElo "2123"]
[BlackElo "2081"]
[Result "1-0"]
[Round "06"]
[TimeControl "180+2"]
[Date "2022.08.18"]
[WhiteClock "0:00:00"]
[BlackClock "0:00:00"]

1. e4 {[%clk 0:00:00]}  c5 {[%clk 0:00:00]} 2. Nf3 {[%clk 0:00:00]}  d6 {[%clk 0:00:00]} 3. c3 {[%clk 0:00:00]}  Nf6 {[%clk 0:00:00]} 4. h3 {[%clk 0:00:00]}  g6 {[%clk 0:00:00]} 5. Bd3 {[%clk 0:00:00]}  Bg7 {[%clk 0:00:00]} 6. Bc2 {[%clk 0:00:00]}  O-O {[%clk 0:00:00]} 7. O-O {[%clk 0:00:00]}  Nc6 {[%clk 0:00:00]} 8. d4 {[%clk 0:00:00]}  cxd4 {[%clk 0:00:00]} 9. cxd4 {[%clk 0:00:00]}  Bd7 {[%clk 0:00:00]} 10. Nc3 {[%clk 0:00:00]}  Rc8 {[%clk 0:00:00]} 11. Re1 {[%clk 0:00:00]}  e5 {[%clk 0:00:00]} 12. d5 {[%clk 0:00:00]}  Ne7 {[%clk 0:00:00]} 13. Be3 {[%clk 0:00:00]}  a6 {[%clk 0:00:00]} 14. Nd2 {[%clk 0:00:00]}  b5 {[%clk 0:00:00]} 15. a3 {[%clk 0:00:00]}  Ne8 {[%clk 0:00:00]} 16. Bd3 {[%clk 0:00:00]}  f5 {[%clk 0:00:00]} 17. f3 {[%clk 0:00:00]}  Nc7 {[%clk 0:00:00]} 18. Qb3 {[%clk 0:00:00]}  Na8 {[%clk 0:00:00]} 19. a4 {[%clk 0:00:00]}  Nc7 {[%clk 0:00:00]} 20. axb5 {[%clk 0:00:00]}  axb5 {[%clk 0:00:00]} 21. Qb4 {[%clk 0:00:00]}  Be8 {[%clk 0:00:00]} 22. Ra7 {[%clk 0:00:00]}  Rb8 {[%clk 0:00:00]} 23. Rea1 {[%clk 0:00:00]}  Ncxd5 {[%clk 0:00:00]} 24. exd5 {[%clk 0:00:00]} 1-0


[Site "https://www.chess.com"]

[Event "Titled Tuesday Blitz August 16 Early 2022"]
[White "Estrada Nieto, Julian"]
[Black "Khabinets, Ivan"]
[WhiteFideId "5101018"]
[BlackFideId "14115980"]
[WhiteElo "2260"]
[BlackElo "1980"]
[Result "0-1"]
[Round "06"]
[TimeControl "180+2"]
[Date "2022.08.18"]
[WhiteClock "0:00:00"]
[BlackClock "0:00:00"]

1. e4 {[%clk 0:00:00]}  c5 {[%clk 0:00:00]} 2. Nf3 {[%clk 0:00:00]}  Nc6 {[%clk 0:00:00]} 3. Bb5 {[%clk 0:00:00]}  Nf6 {[%clk 0:00:00]} 4. Nc3 {[%clk 0:00:00]}  Qc7 {[%clk 0:00:00]} 5. O-O {[%clk 0:00:00]}  e6 {[%clk 0:00:00]} 6. Bxc6 {[%clk 0:00:00]}  dxc6 {[%clk 0:00:00]} 7. e5 {[%clk 0:00:00]}  Nd5 {[%clk 0:00:00]} 8. Ne4 {[%clk 0:00:00]}  Be7 {[%clk 0:00:00]} 9. d3 {[%clk 0:00:00]}  O-O {[%clk 0:00:00]} 10. Bg5 {[%clk 0:00:00]}  f6 {[%clk 0:00:00]} 11. exf6 {[%clk 0:00:00]}  gxf6 {[%clk 0:00:00]} 12. Bh6 {[%clk 0:00:00]}  Rf7 {[%clk 0:00:00]} 13. Qd2 {[%clk 0:00:00]}  Kh8 {[%clk 0:00:00]} 14. c4 {[%clk 0:00:00]}  Nb6 {[%clk 0:00:00]} 15. Qc3 {[%clk 0:00:00]}  e5 {[%clk 0:00:00]} 16. Ng3 {[%clk 0:00:00]}  Be6 {[%clk 0:00:00]} 17. Nh4 {[%clk 0:00:00]}  Rg8 {[%clk 0:00:00]} 18. Nhf5 {[%clk 0:00:00]}  Bxf5 {[%clk 0:00:00]} 19. Nxf5 {[%clk 0:00:00]}  Qd7 {[%clk 0:00:00]} 20. Nxe7 {[%clk 0:00:00]}  Qg4 {[%clk 0:00:00]} 21. g3 {[%clk 0:00:00]}  Rxe7 {[%clk 0:00:00]} 22. Qe1 {[%clk 0:00:00]}  Rd7 {[%clk 0:00:00]} 23. Qe4 {[%clk 0:00:00]}  Qxe4 {[%clk 0:00:00]} 24. dxe4 {[%clk 0:00:00]}  Nxc4 {[%clk 0:00:00]} 25. Rfd1 {[%clk 0:00:00]}  Rgd8 {[%clk 0:00:00]} 26. Rxd7 {[%clk 0:00:00]}  Rxd7 {[%clk 0:00:00]} 27. b3 {[%clk 0:00:00]}  Na3 {[%clk 0:00:00]} 28. Rc1 {[%clk 0:00:00]}  b6 {[%clk 0:00:00]} 29. f4 {[%clk 0:00:00]}  Kg8 {[%clk 0:00:00]} 30. fxe5 {[%clk 0:00:00]}  fxe5 {[%clk 0:00:00]} 31. Rf1 {[%clk 0:00:00]}  Rf7 {[%clk 0:00:00]} 32. Rd1 {[%clk 0:00:00]}  Rf6 {[%clk 0:00:00]} 33. Rd8+ {[%clk 0:00:00]}  Kf7 {[%clk 0:00:00]} 34. Bg5 {[%clk 0:00:00]}  Re6 {[%clk 0:00:00]} 35. Rd7+ {[%clk 0:00:00]}  Kg6 {[%clk 0:00:00]} 36. Bh4 {[%clk 0:00:00]}  Nb5 {[%clk 0:00:00]} 37. Kg2 {[%clk 0:00:00]}  Rd6 {[%clk 0:00:00]} 38. Rxd6+ {[%clk 0:00:00]}  Nxd6 {[%clk 0:00:00]} 39. Kf3 {[%clk 0:00:00]}  Nb5 {[%clk 0:00:00]} 40. Bd8 {[%clk 0:00:00]}  Kf7 {[%clk 0:00:00]} 41. Kg4 {[%clk 0:00:00]}  Ke6 {[%clk 0:00:00]} 42. Kg5 {[%clk 0:00:00]}  Nc3 {[%clk 0:00:00]} 43. Kh6 {[%clk 0:00:00]}  Nxa2 {[%clk 0:00:00]} 44. Kxh7 {[%clk 0:00:00]}  b5 {[%clk 0:00:00]} 45. g4 {[%clk 0:00:00]}  Nc3 {[%clk 0:00:00]} 46. g5 {[%clk 0:00:00]}  Nxe4 {[%clk 0:00:00]} 47. g6 {[%clk 0:00:00]}  Kd7 {[%clk 0:00:00]} 48. g7 {[%clk 0:00:00]}  Kxd8 {[%clk 0:00:00]} 49. g8=Q+ {[%clk 0:00:00]}  Kc7 {[%clk 0:00:00]} 50. Qg7+ {[%clk 0:00:00]}  Kb6 {[%clk 0:00:00]} 51. Qxe5 {[%clk 0:00:00]}  Nd2 {[%clk 0:00:00]} 52. h4 {[%clk 0:00:00]}  Nxb3 {[%clk 0:00:00]} 53. h5 {[%clk 0:00:00]}  c4 {[%clk 0:00:00]} 54. h6 {[%clk 0:00:00]}  b4 {[%clk 0:00:00]} 55. Kg7 {[%clk 0:00:00]}  c3 {[%clk 0:00:00]} 56. Qb8+ {[%clk 0:00:00]}  Kc5 {[%clk 0:00:00]} 57. Qxa7+ {[%clk 0:00:00]}  Kc4 {[%clk 0:00:00]} 58. Qa6+ {[%clk 0:00:00]}  Kd4 {[%clk 0:00:00]} 0-1


[Site "https://www.chess.com"]